[Event "10th Cherry Blossom Classic 2023"]
[Site "Dulles"]
[Date "2023.05.27"]
[Round "4.3"]
[White "Park, Evan"]
[Black "Antipov, Mikhail Al."]
[Result "0-1"]
[ECO "B41"]
[WhiteElo "2380"]
[BlackElo "2588"]
[Annotator "TA"]
[PlyCount "70"]
[EventDate "2023.05.24"]
[EventType "swiss"]
[EventCountry "USA"]
[SourceTitle "playchess.com"]
[Source "ChessBase"]
[SourceQuality "1"]
[TimeControl "5400+30"]

{[%evp 14,70,52,49,48,53,58,41,64,64,95,55,91,102,95,91,96,34,25,42,25,16,89,61,71,0,0,9,28,0,0,-17,0,0,24,-111,-35,-40,-29,-21,0,-66,-72,-304,-290,-609,-598,-1045,-980,-2095,-2047,-1888,-1800,-29995,-29996,-29996,-29997,-29997,-29998]} 1. e4 {[%emt 0:00:03]} c5 {[%emt 0:03:01]} 2. Nf3 {[%emt 0:00:05]} e6 {[%emt 0:00:04]} 3. d4 {[%emt 0:00:05]} cxd4 {[%emt 0:00:03]} 4. Nxd4 {[%emt 0:00:04]} a6 {[%emt 0:00:05]} 5. c4 {[%emt 0:00:03]} Nf6 {[%emt 0:00:05]} 6. Nc3 {[%emt 0:00:04]} Qc7 {[%emt 0:00:05]} 7. a3 {[%emt 0:00:48]} b6 {[%emt 0:00:18]} 8. Be3 {[%emt 0:01:01]} Bb7 {[%emt 0:00:06] B41: Sicilian: Kan Variation: 5 c4.} 9. f3 {[%emt 0:00:04]} Nc6 {[%emt 0:00:15]} 10. Be2 {[%emt 0:00:58]} Ne5 {[%emt 0:00:08] White is slightly better.} 11. Rc1 {[%emt 0:01:32]} Ng6 {[%emt 0:00:05]} 12. Qd2 {[%emt 0:03:38]} h5 {[%emt 0:06:01]} 13. b4 {[%emt 0:03:25]} h4 {[%emt 0:02:16] [#]} 14. Na4 $146 {[%emt 0:12:13]} ({Predecessor:} 14. Nb3 Bd6 15. Bxb6 Qxb6 16. c5 Bg3+ 17. hxg3 Qc7 18. Qd6 Qxd6 19. cxd6 hxg3 20. Rxh8+ Nxh8 {1-0 Heimann,A (2546)-Fedorchuk,S (2635) Wch Blitz 9th 2015 (21)}) 14... Bd6 {[%emt 0:02:53] [#]} 15. Nxb6 $1 {[%emt 0:11:58]} Rd8 $1 $14 {[%emt 0:01:18]} (15... Qxb6 16. c5 Qc7 17. cxd6 Qxd6 18. O-O $16) 16. c5 {[%emt 0:07:05]} Bxh2 {[%emt 0:00:07]} 17. Nc4 {[%emt 0:01:34][%cal Oh1h2]} Bg3+ {[%emt 0:18:30]} (17... Qg3+ 18. Kd1 O-O 19. Nd6 $16) (17... O-O $1 $11 {remains equal.}) 18. Kd1 {[%emt 0:01:59]} O-O {[%emt 0:00:20]} 19. Kc2 {[%emt 0:12:38]} (19. Nb3 $16) 19... d5 {[%emt 0:10:47]} 20. cxd6 {[%emt 0:02:19]} (20. exd5 Nxd5 21. Kb1 Nxe3 22. Qxe3 Bf4 $17) 20... Bxd6 {[%emt 0:07:53] Strongly threatening ...Bf4.} 21. Kb1 {[%emt 0:01:23] Na5 is the strong threat.} (21. Kb3 {with more complications.} Bf4 22. Na5 Qb6 23. Nxb7 Bxe3 24. Qxe3 Rxd4 25. Qc3) 21... Bf4 $1 {[%emt 0:02:16] Hoping for ...e5.} 22. Qc3 {[%emt 0:15:27]} (22. Na5 $5 {[%cal Rc1c7]} Qb6 23. Nxb7 (23. Bxf4 Rxd4 24. Qe3 Nxf4 $17) 23... Bxe3 24. Qxe3 Qxb7 25. Nb3 $14) 22... Bxe3 {[%emt 0:01:56]} (22... Nxe4 {keeps more tension.} 23. fxe4 Bxe4+ 24. Ka2 Bxg2 25. Rhg1 h3) 23. Qxe3 {[%emt 0:00:05]} Qg3 {[%emt 0:00:17][%cal Of6g4]} 24. Bf1 {[%emt 0:08:56] [#]} (24. Rhd1 $11) 24... Ng4 $1 {[%emt 0:02:37][%mdl 512] Black is more active.} 25. Qg1 $1 $15 {[%emt 0:03:42]} N4e5 {[%emt 0:11:55]} (25... Rxd4 $5 26. Qxd4 Nf2 $11) 26. Na5 {[%emt 0:02:03][%mdl 64] Deflection} Ba8 {[%emt 0:06:01]} (26... Bxe4+ 27. fxe4 Qxa3 28. Nc2 $16 (28. Bxa6 $2 Qxb4+ 29. Ndb3 Ra8 $19)) 27. Bxa6 {[%emt 0:01:49]} (27. Nab3 $1 $11) 27... Nf4 {[%emt 0:00:13] White must now prevent ...h3.} 28. Ne2 $2 {[%emt 0:02:10] White does not recover from this.} (28. Nab3 $17 {was worth a try.}) 28... Bxe4+ $1 $19 {[%emt 0:03:21]} 29. fxe4 $2 {[%emt 0:00:34]} (29. Ka1 Nxe2 30. Bxe2) 29... Qxa3 {[%emt 0:00:46][%cal Od8d2] ( -> ...Rd2!)} (29... Qxg2 30. Qxg2 (30. Nxf4 Qxe4+ 31. Rc2 Qxf4 $18) 30... Nxg2 31. Rh2 $18) 30. Qc5 {[%emt 0:02:01] [#]} Rb8 $1 {[%emt 0:03:05]} 31. Qxe5 {[%emt 0:03:07]} (31. b5 Qxa5) 31... Qxb4+ {[%emt 0:00:31]} 32. Kc2 {[%emt 0:00:11] [#]} Rfd8 $1 {[%emt 0:01:32][%csl Gb4][%cal Rd8d2]} 33. Rcd1 {[%emt 0:03:23] Dodges Rd2+} (33. Qxb8 Qd2+) 33... Qa4+ {[%emt 0:00:35][%mdl 64] Skewer. Black mates.} ({Weaker is} 33... Nxg2 34. Rxd8+ Rxd8 35. Qc3 Qxe4+ 36. Kc1 $14 (36. Kb2 Ne3 $15)) 34. Kc3 {[%emt 0:00:05]} Qa3+ {[%emt 0:00:06]} (34... Qxd1 $2 35. Rxd1 Ng6 36. Rxd8+ Rxd8 37. Qc7 $18) ({Inferior is} 34... Rbc8+ 35. Bxc8 Nxe2+ 36. Kb2 Rxd1 37. Rxd1 Qxd1 38. Nb3 $11) 35. Kc2 {[%emt 0:00:36]} Qa2+ {[%emt 0:00:05][%mdl 64] Skewer. A superb game by Antipov.   Weighted Error Value: White=0.95/Black=0.10 (very precise)} 0-1

[Event "10th Cherry Blossom Classic 2023"]
[Site "Dulles"]
[Date "2023.05.27"]
[Round "4.4"]
[White "Burke, John M"]
[Black "Bora, Safal"]
[Result "1/2-1/2"]
[ECO "C55"]
[WhiteElo "2583"]
[BlackElo "2462"]
[Annotator "TA"]
[PlyCount "129"]
[EventDate "2023.05.24"]
[EventType "swiss"]
[EventCountry "USA"]
[SourceTitle "playchess.com"]
[Source "ChessBase"]
[SourceQuality "1"]
[TimeControl "5400+30"]

{[%evp 9,128,32,29,22,25,21,14,27,23,-1,22,-18,-13,-31,-17,-37,11,0,0,13,21,20,52,50,159,54,53,52,50,45,54,54,61,57,59,68,71,51,72,59,109,96,98,79,81,85,54,83,69,85,51,-24,0,4,10,10,0,-18,-15,-19,94,0,0,-8,-8,0,-5,-27,-33,-87,-61,-51,-68,-60,-46,-129,-47,-41,-43,-73,-74,-73,-73,-72,-59,-81,-81,-81,-81,-78,-77,-77,-25,-115,-121,-171,-161,-215,-215,-193,0,0,0,0,0,0,0,0,0,0,0,0,0,0,0,0,0,0,0,0,0]} 1. e4 {[%emt 0:00:03]} e5 {[%emt 0:02:38]} 2. Nf3 {[%emt 0:00:08]} Nc6 {[%emt 0:00:05]} 3. Bc4 {[%emt 0:00:07]} Nf6 {[%emt 0:00:13]} 4. d3 {[%emt 0:00:04]} h6 {[%emt 0:00:20]} 5. c3 {[%emt 0:01:20]} g5 {[%emt 0:00:25]} 6. h3 {[%emt 0:07:00] C55: Two Knights: 4 d3, 4 d4 exd4 5 e5 and Max Lange Attack.} Bg7 {[%emt 0:06:36]} (6... d5 7. exd5 Nxd5 8. Qb3 $16) 7. Nbd2 {[%emt 0:00:25]} d5 {[%emt 0:02:06]} 8. Bb3 {[%emt 0:03:13]} Be6 {[%emt 0:01:37] [#]} 9. Qe2 $146 {[%emt 0:02:52]} ({Predecessor:} 9. O-O Qd7 10. Ba4 Qd6 11. exd5 Bxd5 12. Nxe5 O-O-O 13. Ndc4 Bxc4 14. Nxc4 Qxd3 15. Qxd3 Rxd3 16. Bxc6 bxc6 {0-1 Mickiewicz,P (2272)-Weisz,B (1962) Titled Tuesday intern op 25th Oct Late blitz 2022 (7)}) 9... a6 {[%emt 0:13:29]} 10. Nf1 {[%emt 0:17:39]} (10. O-O $5 {[%cal Re4d5]}) 10... Qd6 {[%emt 0:06:06]} 11. Ng3 {[%emt 0:04:15]} O-O-O {[%emt 0:02:06]} 12. Be3 {[%emt 0:03:36]} Na5 {[%emt 0:15:16]} (12... Kb8 $15) 13. Bc2 {[%emt 0:04:18]} dxe4 {[%emt 0:01:27]} 14. dxe4 {[%emt 0:00:39]} Bc4 {[%emt 0:02:17]} 15. Qd1 {[%emt 0:02:54]} (15. Nf5 $2 Qf8 $19) 15... Qe6 {[%emt 0:07:58]} (15... Qxd1+ {simplifies} 16. Bxd1 Be6 17. Nd2 b6) 16. Nd2 {[%emt 0:02:49]} Rhe8 {[%emt 0:13:35]} (16... Bb5 $14) 17. Qf3 {[%emt 0:04:01]} (17. Nf5 $6 Bf8 $11) (17. Qb1 $16) 17... Bd3 $14 {[%emt 0:01:35]} (17... Bxa2 $2 18. Qf5 Rxd2 19. Bxd2 $16) 18. Bxd3 {[%emt 0:01:24]} Rxd3 {[%emt 0:00:03]} 19. Qf5 {[%emt 0:03:05]} Nc6 {[%emt 0:05:12]} 20. Ke2 {[%emt 0:01:46]} (20. Qxe6+ {simplifies} fxe6 21. h4 g4 22. Ke2) 20... Rd7 {[%emt 0:00:34]} 21. Qxe6 {[%emt 0:00:14]} fxe6 {[%emt 0:00:35]} 22. h4 {[%emt 0:05:28]} g4 {[%emt 0:00:11]} 23. Nc4 {[%emt 0:05:49]} b5 {[%emt 0:05:10]} 24. Nd2 {[%emt 0:04:44]} Nd4+ {[%emt 0:02:39]} 25. cxd4 $16 {[%emt 0:02:40]} exd4 {[%emt 0:00:09]} 26. e5 {[%emt 0:00:41]} Nd5 {[%emt 0:01:09][%cal Bf6d5,Bd5f4,Bf4g2][%mdl 32]} 27. Bxd4 {[%emt 0:00:14]} Nf4+ {[%emt 0:00:31][%mdl 64] Discovered Attack, Double Attack} 28. Ke3 {[%emt 0:00:04]} Nxg2+ {[%emt 0:00:40]} 29. Ke4 $1 {[%emt 0:00:03]} ({Avoid the trap} 29. Kd3 $2 Bxe5 30. Ne2 Rf8 $19) 29... Rf8 {[%emt 0:02:58]} 30. Be3 {[%emt 0:13:57] Against Rf4+} ({White should try} 30. Ne2 $1 $14 c5 31. Nb3 (31. Bxc5 $2 Rxd2 32. Rhe1 Rf5 $19) 31... cxd4 32. Rac1+ Kd8 33. Nbxd4 Rxf2 34. Rhf1 Rxf1 35. Rxf1 Nxh4 36. Nxe6+ Ke8 37. Rh1) 30... Nxe3 {[%emt 0:01:25]} (30... c5 $5 {[%cal Rf8f4]} 31. Ne2 Nxe3 32. Kxe3 Bxe5 $15) 31. Kxe3 {[%emt 0:00:04] f4 is the strong threat.} Bxe5 {[%emt 0:00:05]} 32. Nge4 {[%emt 0:00:41]} Bxb2 {[%emt 0:00:27]} 33. Rab1 {[%emt 0:00:05]} Bd4+ {[%emt 0:00:28][%mdl 1024] Black has compensation.} 34. Ke2 {[%emt 0:00:03]} c5 {[%emt 0:01:04]} (34... Rd5 $11 {keeps the balance.}) 35. Rhc1 {[%emt 0:01:10]} (35. a4 $1 $16) 35... c4 $11 {[%emt 0:01:28]} 36. a4 {[%emt 0:04:24]} Rf5 {[%emt 0:00:29]} (36... bxa4 $2 37. Rxc4+ Kd8 38. Rxa4 $18) 37. axb5 {[%emt 0:00:27]} axb5 {[%emt 0:00:02]} 38. Rb4 {[%emt 0:01:22][%cal Od2c4] Hoping for Nxc4!} Kd8 {[%emt 0:01:10]} 39. Rcb1 {[%emt 0:00:53]} ({Better is} 39. Nf1 $15) 39... Rdd5 {[%emt 0:00:56]} 40. Nxc4 {[%emt 0:02:48]} bxc4 {[%emt 0:00:04]} 41. Rxc4 {[%emt 0:00:02]} Rd7 {[%emt 0:04:00] White must now prevent ...Rf4.} 42. Rb8+ {[%emt 0:00:46]} Ke7 {[%emt 0:02:12] Threatens to win with ...Rf4.} 43. Rcc8 $1 {[%emt 0:00:36]} Re5 {[%emt 0:00:00]} 44. f3 {[%emt 0:00:12]} gxf3+ $1 {[%emt 0:00:00]} 45. Kxf3 {[%emt 0:00:03]} Rf5+ {[%emt 0:00:00]} 46. Ke2 {[%emt 0:00:46]} Bg7 {[%emt 0:01:00]} 47. Re8+ {[%emt 0:02:45]} Kf7 {[%emt 0:00:02]} 48. Red8 {[%emt 0:00:37] Prevents Re5.} Rxd8 {[%emt 0:00:47]} 49. Rxd8 $17 {[%emt 0:00:03][%mdl 4096] Endgame KRB-KRN} Rf4 {[%emt 0:00:38]} 50. Rd7+ {[%emt 0:01:27] [#]} Kg8 {[%emt 0:00:54]} (50... Ke8 $1 $17 51. Rxg7 Rxe4+ 52. Kd3 Rxh4) 51. Nc5 {[%emt 0:00:35]} (51. Rd8+ $11 Kh7 52. Ke3 Rxh4 53. Rd6) 51... Rxh4 {[%emt 0:00:37]} 52. Kf3 {[%emt 0:00:09]} (52. Ke3 $17 {keeps fighting.}) 52... e5 $19 {[%emt 0:00:21]} 53. Ne4 {[%emt 0:00:48] [#]} (53. Re7 $142) 53... Rf4+ $1 {[%emt 0:00:12]} 54. Ke3 {[%emt 0:00:01]} Kh7 $2 {[%emt 0:00:20]} (54... h5 $19 {And now ...Bh6 would win.} 55. Nf2 h4) 55. Ng3 $11 {[%emt 0:00:21] The position is equal.} Rg4 {[%emt 0:00:52]} 56. Nf5 {[%emt 0:01:14]} h5 {[%emt 0:00:44]} 57. Re7 {[%emt 0:00:14]} Kg6 {[%emt 0:00:31]} 58. Nxg7 {[%emt 0:00:19] KRN-KR} (58. Rxg7+ $2 {too greedy.} Kxf5 59. Rf7+ Kg6 $19) 58... Kf6 {[%emt 0:00:17][%csl LRe7,LRg7][%mdl 64] Deflection} 59. Re6+ {[%emt 0:00:03]} Kxg7 {[%emt 0:00:04]} 60. Rxe5 {[%emt 0:00:02] KR-KR} Kh6 {[%emt 0:00:16]} 61. Kf3 {[%emt 0:00:03]} Rg6 {[%emt 0:01:55]} 62. Re2 {[%emt 0:00:16]} h4 {[%emt 0:00:00]} 63. Rg2 {[%emt 0:00:02]} Rxg2 {[%emt 0:00:00]} 64. Kxg2 {[%emt 0:00:02]} h3+ {[%emt 0:00:00]} 65. Kxh3 {[%emt 0:00:02] Weighted Error Value: White=0.17 (very precise) /Black=0.16 (very precise)} 1/2-1/2

[Event "10th Cherry Blossom Classic 2023"]
[Site "Dulles"]
[Date "2023.05.27"]
[Round "4.5"]
[White "Tanenbaum, Zachary"]
[Black "Kantor, Gergely"]
[Result "0-1"]
[ECO "C54"]
[WhiteElo "2261"]
[BlackElo "2535"]
[Annotator "TA"]
[PlyCount "80"]
[EventDate "2023.05.24"]
[EventType "swiss"]
[EventCountry "USA"]
[SourceTitle "playchess.com"]
[Source "ChessBase"]
[SourceQuality "1"]
[TimeControl "5400+30"]

{[%evp 10,80,14,14,16,3,10,0,10,-13,-8,0,53,0,14,9,30,18,24,14,37,-127,-74,-75,-93,-82,-92,-303,-251,-318,-314,-295,-256,-285,-243,-289,-297,-260,-279,-273,-246,-366,-366,-365,-269,-485,-558,-535,-550,-562,-549,-560,-538,-527,-487,-758,-734,-725,-711,-762,-751,-739,-739,-718,-700,-989,-989,-962,-954,-5645,-5590,-1904,-1535]} 1. e4 {[%emt 0:10:54]} e5 {[%emt 0:00:06]} 2. Nf3 {[%emt 0:00:03]} Nc6 {[%emt 0:00:04]} 3. Bc4 {[%emt 0:00:01]} Nf6 {[%emt 0:00:03]} 4. d3 {[%emt 0:00:05]} Bc5 {[%emt 0:00:03]} 5. c3 {[%emt 0:00:01]} O-O {[%emt 0:00:21]} 6. Nbd2 {[%emt 0:00:02]} a5 $1 {[%emt 0:00:23][%mdl 4] is now more promising than 6...d6. C54: Giuoco Piano: 4 c3 Nf6, main lines with 5 d4 and 5 d3.} 7. a4 {[%emt 0:00:03]} Ba7 {[%emt 0:02:09]} 8. Nf1 {[%emt 0:00:45]} d5 {[%emt 0:00:34] The position is equal.} 9. exd5 {[%emt 0:00:07]} Nxd5 {[%emt 0:00:07]} 10. Ng3 {[%emt 0:00:17]} Kh8 {[%emt 0:00:19]} (10... Nf4 $11) 11. O-O {[%emt 0:00:25] [#]} (11. Qb3 $1 $14 Nb6 12. Bxf7) 11... f5 $146 {[%emt 0:03:26]} ({Predecessor:} 11... f6 12. Re1 Rb8 13. d4 exd4 14. Nxd4 Ne5 15. Ba2 c6 16. h3 Bd7 17. Bxd5 cxd5 {½-½ Alonso Garcia,A (2376)-Krysa,L (2532) ESP-chT CECLUB Div2 2021 (2.3)}) 12. Re1 {[%emt 0:01:14]} f4 {[%emt 0:00:09]} 13. Ne4 {[%emt 0:01:13]} Bg4 {[%emt 0:00:09]} 14. Neg5 {[%emt 0:22:05]} (14. b3 {simplifies} h6 15. Ba3 Re8 16. Rc1) 14... h6 {[%emt 0:24:30]} 15. Qb3 $2 {[%emt 0:12:33]} (15. h3 $14) 15... hxg5 {[%emt 0:05:26]} (15... Ndb4 $142 16. Ne4 (16. cxb4 hxg5 17. b5 Bxf3 $17) 16... Nxd3 17. Bxd3 Qxd3 18. Qxb7 Qd7) 16. Bxd5 $17 {[%emt 0:00:12]} Bxf3 {[%emt 0:02:47]} 17. Bxf3 {[%emt 0:00:21] [#]} g4 $1 {[%emt 0:02:23]} 18. Bxc6 {[%emt 0:05:31] [#] Loses the game.} (18. Bxg4 $2 Qh4 19. Kh1 Qxg4 $19) (18. Qxb7 $17 {only move.} Qh4 19. d4 Nxd4 20. cxd4 Bxd4 21. Rf1) 18... g3 $1 $19 {[%emt 0:03:24]} (18... bxc6 19. Qc4 Rf5 20. d4 $17 (20. Qxc6 g3 $17)) 19. d4 {[%emt 0:29:17]} (19. Bxb7 $2 Qh4 20. Kf1 (20. Rxe5 $2 Bxf2+ 21. Kf1 gxh2 $19) 20... gxh2 $19) (19. hxg3 $2 fxg3 20. Re3 gxf2+ 21. Kf1 Bxe3 $19) 19... gxf2+ {[%emt 0:02:08]} (19... bxc6 20. hxg3 fxg3 21. fxg3 exd4 22. Re5 $11) 20. Kxf2 {[%emt 0:00:02]} Qh4+ $40 {[%emt 0:01:55][%mdl 128] Black goes for the king.} (20... bxc6 21. Qd1 exd4 22. cxd4 $17 (22. Qh5+ $2 Kg8 $19)) 21. Kf1 {[%emt 0:00:17]} bxc6 {[%emt 0:07:36]} 22. Qe6 {[%emt 0:07:22]} (22. Rxe5 $2 f3 23. Be3 Qxh2 24. gxf3 Rxf3+ 25. Ke1 Raf8 $19) 22... Rae8 {[%emt 0:17:21]} (22... exd4 $2 23. Qh3 Qxh3 24. gxh3 $19) (22... Qxh2 23. Rxe5 (23. Qxe5 $2 c5 $19) 23... Qh1+ 24. Ke2 Qxg2+ 25. Kd3 Qf3+ 26. Kc2 $17) 23. Qh3 {[%emt 0:03:53]} Qxh3 {[%emt 0:00:05]} 24. gxh3 {[%emt 0:00:02]} e4 {[%emt 0:00:12][%cal Be5e4,Be4e3,Be3e2][%mdl 32]} ({And not} 24... exd4 25. Rxe8 Rxe8 26. cxd4 $15) 25. b3 {[%emt 0:04:40]} (25. Rb1 $142) 25... e3 {[%emt 0:00:55]} 26. Ra2 {[%emt 0:00:13]} Rf5 {[%emt 0:01:56] Threatens to win with ...c5.} 27. Ke2 $2 {[%emt 0:01:44]} (27. Rf2 {was the only chance.} g6 28. Rf3) 27... f3+ {[%emt 0:01:03] Black is clearly winning.} 28. Kd3 {[%emt 0:00:36]} e2 {[%emt 0:01:01] Hoping for ...f2.} 29. Be3 {[%emt 0:00:04]} f2 {[%emt 0:01:12]} 30. Bxf2 {[%emt 0:00:14]} Rf3+ {[%emt 0:00:10]} ({Weaker is} 30... Rxf2 31. Rexe2 Rfxe2 32. Rxe2 Rxe2 33. Kxe2 $19) 31. Kc4 {[%emt 0:01:04]} Rxf2 {[%emt 0:00:05]} 32. Rg1 {[%emt 0:00:37]} (32. Kd3 $142 Rf3+ 33. Kc4) 32... Rxh2 {[%emt 0:01:27]} ({Inferior is} 32... e1=R 33. Rxe1 Rxe1 34. Rxf2 $17) 33. Re1 {[%emt 0:00:28]} Re3 {[%emt 0:01:48]} 34. Rc2 {[%emt 0:00:08]} Bb6 {[%emt 0:01:18][%cal Oh8h7]} 35. b4 {[%emt 0:00:44]} Kh7 {[%emt 0:00:09]} 36. b5 {[%emt 0:00:40]} cxb5+ {[%emt 0:00:08]} 37. axb5 {[%emt 0:00:29]} a4 {[%emt 0:00:10]} 38. Kb4 {[%emt 0:00:25]} a3 {[%emt 0:00:18]} 39. Kxa3 {[%emt 0:00:35]} Bxd4 {[%emt 0:00:13]} 40. Kb4 {[%emt 0:00:14]} Be5 {[%emt 0:00:31] Weighted Error Value: White=0.68/Black=0.11 (very precise)} 0-1

[Event "10th Cherry Blossom Classic 2023"]
[Site "Dulles"]
[Date "2023.05.27"]
[Round "4.6"]
[White "Brady, Tyson"]
[Black "Khanin, Semen"]
[Result "0-1"]
[ECO "C68"]
[WhiteElo "2092"]
[BlackElo "2566"]
[Annotator "TA"]
[PlyCount "72"]
[EventDate "2023.05.24"]
[EventType "swiss"]
[EventCountry "USA"]
[SourceTitle "playchess.com"]
[Source "ChessBase"]
[SourceQuality "1"]
[TimeControl "5400+30"]

{[%evp 15,72,-20,11,0,-8,-8,-2,-7,-8,-5,-14,-6,-15,-22,-12,-8,-16,-18,-11,-25,-24,-29,-18,-29,-38,-41,-36,-46,-35,-110,-115,-104,-95,-171,-144,-154,-61,-196,-189,-197,-189,-354,-367,-337,-249,-598,-478,-478,-615,-4926,-3060,-7383,-9190,-7876,-7926,-7186,-6672,-5624,-5598]} 1. e4 {[%emt 0:00:03]} e5 {[%emt 0:01:14]} 2. Nf3 {[%emt 0:00:05]} Nc6 {[%emt 0:00:04]} 3. Bb5 {[%emt 0:00:03]} a6 {[%emt 0:00:06]} 4. Bxc6 {[%emt 0:00:04]} dxc6 {[%emt 0:00:06]} 5. O-O {[%emt 0:00:03]} Bg4 {[%emt 0:00:06]} 6. h3 {[%emt 0:00:03]} h5 {[%emt 0:00:07]} 7. d3 {[%emt 0:00:01]} Qf6 {[%emt 0:00:08]} 8. Nbd2 {[%emt 0:00:01] [#]} g5 $1 {[%emt 0:00:08]} 9. Nc4 {[%emt 0:00:17][%cal Oc4e5] C68: Ruy Lopez: Exchange Variation, sidelines.} (9. b3 Bxf3) 9... Bxf3 {[%emt 0:00:26]} 10. Qxf3 {[%emt 0:00:01]} Qxf3 {[%emt 0:00:09]} 11. gxf3 {[%emt 0:00:02] The position is equal.} f6 {[%emt 0:00:08]} 12. Be3 {[%emt 0:00:02]} Ne7 {[%emt 0:00:07]} 13. h4 {[%emt 0:02:16][%mdl 64] [#] Deflection} gxh4 {[%emt 0:03:20]} 14. f4 {[%emt 0:00:29]} b5 {[%emt 0:05:18] Threatens to win with ...exf4.} 15. Nd2 {[%emt 0:03:55] [#]} exf4 $146 {[%emt 0:01:22]} ({Predecessor:} 15... Rg8+ 16. Kh2 exf4 17. Bxf4 Ng6 18. Be3 Bd6+ 19. Kh3 Ne5 20. Rg1 Kd7 21. a4 Ng4 {½-½ Fernandez,J (2298)-Sarakenidis,N (2360) WC-2017-S-00007}) 16. Bxf4 {[%emt 0:00:06]} Kd7 {[%emt 0:03:51]} 17. a4 {[%emt 0:05:53]} Ng6 {[%emt 0:03:50]} 18. Be3 {[%emt 0:00:13]} Bd6 {[%emt 0:02:58]} 19. f4 {[%emt 0:02:51]} Rhg8 {[%emt 0:04:53]} 20. Kh1 {[%emt 0:01:22]} Ne7 {[%emt 0:02:41]} 21. axb5 {[%emt 0:05:18]} cxb5 {[%emt 0:02:01]} 22. Rg1 {[%emt 0:09:10]} (22. Bd4 $15) 22... Rg4 $17 {[%emt 0:02:52]} 23. c4 {[%emt 1:09:42]} c6 {[%emt 0:16:57]} ({Don't do} 23... Bxf4 24. Rxg4 Bxe3 25. Rg2 $16) 24. cxb5 {[%emt 0:00:00]} (24. f5 $17) 24... cxb5 $19 {[%emt 0:00:15]} 25. Nf3 {[%emt 0:00:00]} Bxf4 {[%emt 0:06:37]} ({Better is} 25... Ng6 $17 26. Nd4 Bxf4) 26. Rxg4 {[%emt 0:00:00] This costs White the game.} ({White has to play} 26. Bxf4 $15 Rxf4 27. Nd4) 26... hxg4 {[%emt 0:00:05]} 27. Bxf4 {[%emt 0:00:00] aiming for Nh2.} gxf3 $17 {[%emt 0:00:17][%mdl 4096] Endgame KRB-KRN} 28. Kg1 $2 {[%emt 0:00:00]} (28. Rf1 {keeps fighting.}) 28... Ng6 $19 {[%emt 0:04:02]} 29. Bh2 {[%emt 0:00:00]} Rc8 {[%emt 0:03:16] ...Rc2 is the strong threat.} ({Not} 29... Ne5 $2 30. Bxe5 fxe5 31. b4 $19) 30. Rxa6 $2 {[%emt 0:00:00]} (30. Rf1 {is a better chance.}) 30... Rc1+ {[%emt 0:01:06] Black is clearly winning.} 31. Kf2 {[%emt 0:00:00]} Rc2+ {[%emt 0:00:11]} 32. Kg1 {[%emt 0:00:00]} Rg2+ {[%emt 0:09:56]} ({And not} 32... Rxb2 33. Rxf6 Rg2+ 34. Kh1 $15) 33. Kh1 {[%emt 0:00:00]} Ne5 {[%emt 0:01:15] ( -> ...Ng4)} 34. Bxe5 {[%emt 0:00:00]} fxe5 {[%emt 0:00:04]} 35. Rf6 {[%emt 0:00:00]} Rxb2 {[%emt 0:00:06] And now ...b4 would win.} 36. Rxf3 {[%emt 0:00:00]} b4 {[%emt 0:01:23] Weighted Error Value: White=0.81/Black=0.12 (very precise)} 0-1